bitfinex-derivatives/quotes_BTCF0:USTF0_20251011
["timestamp","ask_amount","ask_price","bid_price","bid_amount"]
[1760224174889,0.1029683,111040.0,111020.0,0.3747214]
[1760224174890,0.1253164,111030.0,111020.0,0.3609114]
[1760224175095,0.1253164,111030.0,111020.0,0.3965814]
[1760224175483,0.1253164,111030.0,111020.0,0.3837614]
[1760224175880,0.1253164,111030.0,111020.0,0.0229614]
[1760224176080,0.4861164,111030.0,111020.0,0.0229614]
[1760224176689,0.4861164,111030.0,111020.0,0.0357814]
[1760224176893,0.1123064,111030.0,111020.0,0.85302676]
[1760224177091,0.0899664,111030.0,111020.0,0.4357814]
[1760224177289,0.1123064,111030.0,111020.0,0.85302676]
[1760224177589,0.1123064,111030.0,111020.0,1.21382676]
[1760224177791,0.1123064,111030.0,111020.0,0.85302676]
[1760224177982,0.0899664,111030.0,111020.0,1.21382676]
[1760224179190,0.1253164,111030.0,111020.0,0.0229614]
[1760224179391,0.4861164,111030.0,111020.0,0.0229614]
[1760224179990,0.1253164,111030.0,111020.0,0.0229614]
[1760224180197,0.1253164,111030.0,111020.0,0.0357814]
[1760224180586,0.1253164,111030.0,111020.0,0.0229614]
[1760224180793,0.1123064,111030.0,111020.0,0.0357814]
[1760224181193,0.1256964,111030.0,111020.0,0.0357814]
[1760224181698,0.1123064,111030.0,111020.0,0.45302676]
[1760224183095,0.37381,111040.0,111030.0,0.03591]
[1760224183096,0.4730022,111040.0,111030.0,0.03591]
[1760224183295,0.4863922,111040.0,111030.0,0.03591]
[1760224183492,0.4863922,111040.0,111030.0,0.02201]
[1760224183898,0.1255922,111040.0,111030.0,0.02201]
[1760224184298,0.4863922,111040.0,111030.0,0.02201]
[1760224185600,0.1122022,111040.0,111030.0,0.03591]
[1760224185897,0.1121983,111040.0,111030.0,0.45315536]
[1760224186102,0.1121983,111040.0,111030.0,0.03591]
[1760224186402,0.02224,111040.0,111030.0,0.03591]
[1760224186595,0.1121983,111040.0,111030.0,0.85315536]
[1760224187194,0.1121983,111040.0,111030.0,0.02201]
[1760224187401,0.4863883,111040.0,111030.0,0.02201]
[1760224187597,0.1255964,111030.0,111020.0,0.0221214]
[1760224187798,0.1255964,111030.0,111020.0,0.0001114]
[1760224188499,0.1255964,111030.0,111020.0,0.0221214]
[1760224189003,0.4863964,111030.0,111020.0,0.0001114]
[1760224189607,0.4863964,111030.0,111020.0,0.0221214]
[1760224190304,0.1122064,111030.0,111020.0,0.0360214]
[1760224190504,0.4863964,111030.0,111020.0,0.0221214]
[1760224190706,0.1255964,111030.0,111020.0,0.0221214]
[1760224190906,0.1255964,111030.0,111020.0,0.0360214]
[1760224191307,0.4863964,111030.0,111020.0,0.0221214]
[1760224191904,0.1255964,111030.0,111020.0,0.0221214]
[1760224192109,0.4863964,111030.0,111020.0,0.0221214]
[1760224194108,0.4863964,111030.0,111020.0,0.0001114]
[1760224194613,0.4863964,111030.0,111020.0,0.0221214]
[1760224195501,0.4863964,111030.0,111020.0,0.0001114]
[1760224197202,0.4863964,111030.0,111020.0,0.0221214]
[1760224199012,0.8863964,111030.0,111020.0,0.0001114]
[1760224199218,0.90949021,111030.0,111020.0,0.0001114]
[1760224199515,0.90949021,111030.0,111020.0,0.0221214]
[1760224199917,0.50949021,111030.0,111020.0,0.0221214]
[1760224200310,0.50949021,111030.0,111020.0,0.0001114]
[1760224200706,0.50949021,111030.0,111020.0,0.0221214]
[1760224201406,0.50949021,111030.0,111020.0,0.0001114]
[1760224202913,0.90949021,111030.0,111020.0,0.0001114]
[1760224207712,0.90949021,111030.0,111020.0,0.0229914]
[1760224207915,0.90949021,111030.0,111020.0,0.0001114]
[1760224210519,0.8863964,111030.0,111020.0,0.0001114]
[1760224210724,0.90965317,111030.0,111020.0,0.0001114]
[1760224212621,0.90965317,111030.0,111020.0,0.0229914]
[1760224212921,0.90965317,111030.0,111020.0,0.0001114]
[1760224214120,0.90965317,111030.0,111020.0,0.0229914]
[1760224214326,0.1255964,111030.0,111020.0,0.0364814]
[1760224215120,0.4863964,111030.0,111020.0,0.0229914]
[1760224215625,0.4863964,111030.0,111020.0,0.0001114]
[1760224216327,1.20605506,111030.0,111020.0,0.0001114]
[1760224216527,1.20605506,111030.0,111010.0,0.08341]
[1760224216528,0.1263846,111020.0,111010.0,0.08341]
[1760224216823,0.80684326,111020.0,111010.0,0.08341]
[1760224217417,0.80695044,111020.0,111010.0,0.06529062]
[1760224217617,0.1264008,111000.0,110990.0,0.1128787]
[1760224217818,0.4872008,111000.0,110990.0,0.40927684]
[1760224218015,0.4872008,111000.0,110990.0,0.41830614]
[1760224218421,0.4872008,111000.0,110990.0,0.43179614]
[1760224218725,0.4872008,111000.0,110990.0,0.32830744]
[1760224219126,0.4872008,111000.0,110990.0,0.0319093]
[1760224219327,0.1264008,111000.0,110990.0,0.0319093]
[1760224221328,0.02304,111000.0,110990.0,0.1353982]
[1760224221625,0.0899908,111000.0,110990.0,0.30542744]
[1760224221930,0.1264008,111000.0,110990.0,0.32830744]
[1760224222529,0.1264008,111000.0,110990.0,0.0319093]
[1760224223628,0.02304,111000.0,110990.0,0.1353981]
[1760224223827,0.1264007,111000.0,110990.0,0.0319093]
[1760224225324,0.1264007,111000.0,110990.0,0.1219081]
[1760224225630,0.1264007,111000.0,110990.0,0.1353981]
[1760224226227,0.1264007,111000.0,110990.0,0.32830744]
[1760224227027,0.4872007,111000.0,110990.0,0.32830744]
[1760224227227,0.4872007,111000.0,110990.0,0.0319093]
[1760224227421,0.1264007,111000.0,110990.0,0.0319093]
[1760224227824,0.1264007,111000.0,110990.0,0.32830744]
[1760224228427,0.02304,111000.0,110990.0,0.43179624]
[1760224228825,0.1264007,111000.0,110990.0,0.32830744]
[1760224229130,0.1264007,111000.0,110990.0,0.0319093]
[1760224230328,0.1033745,110990.0,110980.0,0.02288]
[1760224230521,0.03641,110980.0,110970.0,0.5571351]
[1760224230831,0.03641,110980.0,110970.0,0.78358324]
[1760224231041,0.02304,110980.0,110970.0,0.78358324]
[1760224231330,0.03641,110980.0,110970.0,0.78358324]
[1760224231525,0.03641,110980.0,110970.0,0.4871851]
[1760224231721,0.03641,110980.0,110970.0,0.1128951]
[1760224232428,0.42281504,110980.0,110970.0,0.02288]
[1760224232633,0.1248651,110970.0,110960.0,0.02267]
[1760224234033,0.1248651,110970.0,110960.0,0.03165123]
[1760224240231,0.1248651,110970.0,110960.0,0.02267]
[1760224240436,0.1248732,110960.0,110950.0,0.38356072]
[1760224240734,0.12495817,110960.0,110950.0,0.38356072]
[1760224242036,0.12495817,110960.0,110950.0,0.78378016]
[1760224242638,8.497e-05,110960.0,110950.0,1.18378016]
[1760224242836,8.497e-05,110960.0,110950.0,1.0801783]
[1760224243027,0.38321,110990.0,110980.0,0.03532]
[1760224243340,0.38321,110990.0,110980.0,0.42172504]
[1760224243341,0.02241,110990.0,110980.0,0.42172504]
[1760224243538,0.02241,110990.0,110980.0,0.33171814]
[1760224243539,0.1124088,110990.0,110980.0,0.33171814]
[1760224243733,0.1124088,110990.0,110980.0,0.34073269]
[1760224244039,0.39636,111000.0,110990.0,0.1253188]
[1760224244239,0.40652155,111000.0,110990.0,0.42171694]
[1760224244444,0.38321,111000.0,110990.0,0.42171694]
[1760224244738,0.4732007,111000.0,110990.0,0.33171814]
[1760224244936,0.02241,111000.0,110990.0,0.42171694]
[1760224245138,0.03556,111010.0,111000.0,0.1253107]
[1760224245436,0.4639284,111020.0,111000.0,0.1253107]
[1760224245437,0.02241,111020.0,111010.0,0.03532]
[1760224245640,0.1255345,111020.0,111010.0,0.03532]
[1760224245839,0.03556,111010.0,111000.0,0.31792814]
[1760224246240,0.03556,111010.0,111000.0,0.33171814]
[1760224246636,0.02241,111010.0,111000.0,0.33171814]
[1760224246843,0.02241,111010.0,111000.0,0.69251814]
[1760224247343,0.1255426,111010.0,111000.0,0.69251814]
[1760224248144,0.1255426,111010.0,111000.0,0.33171814]
[1760224248340,0.1255426,111010.0,111000.0,0.31792814]
[1760224248539,0.1255426,111010.0,111000.0,0.33171814]
[1760224250641,0.02241,111010.0,111000.0,0.78250884]
[1760224251238,0.4639287,111020.0,111000.0,0.78250884]
[1760224251540,0.38321,111020.0,111010.0,0.45870968]
[1760224251752,0.02241,111020.0,111010.0,0.45870968]
[1760224253345,0.02241,111020.0,111010.0,0.81950968]
[1760224254136,0.1123845,111020.0,111010.0,0.72952708]
[1760224254338,0.1255345,111020.0,111010.0,0.72952708]
[1760224255146,0.38321,111030.0,111020.0,0.03532]
[1760224255449,0.02241,111040.0,111030.0,0.1037493]
[1760224255638,0.4863102,111050.0,111040.0,0.03532]
[1760224255843,0.4863102,111050.0,111040.0,0.35493708]
[1760224256147,0.4863102,111050.0,111040.0,0.02153]
[1760224256343,0.4863102,111050.0,111040.0,0.35493708]
[1760224256847,0.4873102,111050.0,111040.0,0.35493708]
[1760224257045,0.82171728,111050.0,111040.0,0.35493708]
[1760224257244,0.82171728,111050.0,111040.0,0.33340708]
[1760224258042,0.1255183,111040.0,111030.0,0.12069556]
[1760224258346,0.1255264,111030.0,111020.0,0.02153]
[1760224258541,0.1255264,111030.0,111020.0,0.35493708]
[1760224258934,0.4863264,111030.0,111020.0,0.35493708]
[1760224259343,0.81973348,111030.0,111020.0,0.35493708]
[1760224259744,0.4863264,111030.0,111020.0,0.35493708]
[1760224260448,0.1255345,111020.0,111010.0,0.00918357]
[1760224260641,0.1255426,111010.0,111000.0,0.71573708]
[1760224261443,0.1255426,111010.0,111000.0,0.38233]
[1760224261643,0.1255426,111010.0,111000.0,0.39612]
[1760224261644,0.1123926,111010.0,111000.0,0.39612]
[1760224262449,0.1123926,111010.0,111000.0,0.81300755]
[1760224262643,0.1123926,111010.0,111000.0,0.82207256]
[1760224263747,0.1122126,111010.0,111000.0,0.82207256]
[1760224263939,0.0899826,111010.0,111000.0,0.82207256]
[1760224264652,0.0899826,111010.0,111000.0,0.91206326]
[1760224265047,0.0899745,111020.0,111010.0,0.01357]
[1760224265252,0.39618,111030.0,111020.0,0.02134]
[1760224266153,0.0899745,111020.0,111010.0,0.37437]
[1760224266349,0.1249145,111020.0,111010.0,0.38214]
[1760224266849,0.1249226,111010.0,111000.0,0.39120501]
[1760224267550,0.1122126,111010.0,111000.0,0.81259755]
[1760224267948,0.1249226,111010.0,111000.0,0.38214]
[1760224271356,0.1249226,111010.0,111000.0,0.39571]
[1760224271761,0.1122126,111010.0,111000.0,0.39571]
[1760224272361,0.4634892,111020.0,111000.0,0.90258825]
[1760224272662,0.37395,111030.0,111000.0,0.90258825]
[1760224272663,0.02223,111030.0,111020.0,0.1248845]
[1760224272865,0.1121964,111030.0,111020.0,0.81259755]
[1760224273062,0.02223,111030.0,111020.0,0.90257205]
[1760224273766,0.02223,111030.0,111020.0,0.81259755]
[1760224274359,0.02223,111030.0,111020.0,0.90257205]
[1760224275867,0.02223,111040.0,111030.0,0.1248764]
[1760224276067,0.02223,111050.0,111040.0,0.03491]
[1760224276270,0.02223,111060.0,111050.0,0.03491]
[1760224276473,0.1121721,111060.0,111050.0,0.45179755]
[1760224276675,0.13558277,111060.0,111050.0,0.45179755]
[1760224276871,0.04564067,111060.0,111050.0,0.45179755]
[1760224277070,0.04564067,111060.0,111050.0,0.54174775]
[1760224277273,0.02341067,111060.0,111050.0,1.30254775]
[1760224277470,0.4634394,111080.0,111070.0,0.02134]
[1760224277777,0.50907022,111080.0,111070.0,0.02134]
[1760224278278,0.1248821,111060.0,111050.0,0.03022377]
[1760224278478,0.14828292,111060.0,111050.0,0.03022377]
[1760224279072,0.50908292,111060.0,111050.0,0.03022377]
[1760224279381,0.1248983,111040.0,111030.0,0.39571]
[1760224279575,0.1248983,111040.0,111030.0,0.81259755]
[1760224279776,0.1248983,111040.0,111030.0,0.03017341]
[1760224279977,0.4856983,111040.0,111030.0,0.02134]
[1760224280377,0.1121964,111030.0,111020.0,0.39571]
[1760224281676,0.1249064,111030.0,111020.0,0.39571]
[1760224281987,0.1249226,111010.0,111000.0,0.38214]
[1760224282374,0.4857138,111030.0,111020.0,0.02134]
[1760224283270,0.0899745,111020.0,111010.0,0.79125755]
[1760224283481,0.1249145,111020.0,111010.0,0.02134]
[1760224283680,0.1249226,111010.0,111000.0,0.38214]
[1760224284080,0.1249226,111010.0,111000.0,0.3608]
[1760224284381,0.1249226,111010.0,111000.0,0.38214]
[1760224284581,0.1249226,111010.0,111000.0,0.02134]
[1760224285672,0.39574,111030.0,111010.0,0.01357]
[1760224285872,0.112203,111030.0,111020.0,0.81259755]
[1760224286073,0.112203,111030.0,111020.0,0.39571]
[1760224286377,0.1249064,111030.0,111020.0,0.03491]
[1760224286880,0.1121964,111030.0,111020.0,0.03491]
[1760224287089,0.1249064,111030.0,111020.0,0.02134]
[1760224287979,0.38303,111040.0,111030.0,0.03491]
[1760224288179,0.4729883,111040.0,111030.0,0.45179755]
[1760224288779,0.38303,111040.0,111030.0,0.45179755]
[1760224288986,0.02223,111040.0,111030.0,0.81259755]
[1760224289581,0.4634643,111050.0,111040.0,0.01357]
[1760224289582,0.1026617,111050.0,111040.0,0.01357]
[1760224289783,0.1248917,111050.0,111040.0,0.03491]
[1760224289979,0.02223,111050.0,111040.0,0.1248683]
[1760224290185,0.4634546,111060.0,111040.0,0.54175585]
[1760224290486,0.48652759,111060.0,111040.0,0.54175585]
[1760224290784,0.41881299,111060.0,111050.0,0.01357]
[1760224290984,0.02307299,111060.0,111050.0,0.1248602]
[1760224291188,0.02307299,111060.0,111050.0,0.03491]
[1760224291487,0.02307299,111060.0,111050.0,0.85179755]
[1760224291689,0.02307299,111060.0,111050.0,1.21259755]
[1760224291884,0.4634478,111070.0,111050.0,1.30254775]
[1760224292083,0.02306709,111070.0,111060.0,0.54095965]
[1760224292285,0.02306709,111070.0,111060.0,0.90175965]
[1760224292583,0.01282,111060.0,111050.0,0.45775]
[1760224292781,0.1247921,111060.0,111050.0,0.08338]
[1760224292983,1.30247965,111060.0,111050.0,0.08338]
[1760224293183,0.8855921,111060.0,111050.0,0.08338]
[1760224293382,1.30247965,111060.0,111050.0,0.08338]
[1760224293577,0.8855921,111060.0,111050.0,0.08338]
[1760224293786,0.4855921,111060.0,111050.0,0.08338]
[1760224294188,0.50840749,111060.0,111050.0,0.08338]
[1760224294580,0.41846539,111060.0,111050.0,0.1944802]
[1760224294782,0.49558871,111060.0,111050.0,0.10453]
[1760224294991,0.50840871,111060.0,111050.0,0.08338]
[1760224295889,0.90840871,111060.0,111050.0,0.08338]
[1760224296488,1.32529626,111060.0,111050.0,0.08338]
[1760224296687,1.32529626,111060.0,111050.0,0.0113961]
[1760224296992,0.1248164,111030.0,111020.0,0.3608]
[1760224297382,0.1248164,111030.0,111010.0,0.37378]
[1760224297383,0.0899745,111020.0,111010.0,0.3608]
[1760224297591,0.1120127,111010.0,111000.0,0.45924918]
[1760224297784,0.1120087,111020.0,111010.0,0.03413]
[1760224297980,0.1120087,111020.0,111010.0,0.02115]
[1760224298385,0.1248287,111020.0,111010.0,0.02115]
[1760224298586,0.1248326,111010.0,111000.0,0.42511918]
[1760224298783,0.02203,111010.0,111000.0,0.4719407]
[1760224298984,0.1120081,111020.0,111010.0,0.1111326]
[1760224299188,0.1120081,111020.0,111010.0,0.1241126]
[1760224299690,0.1120081,111020.0,111000.0,0.4637701]
[1760224299893,0.1248281,111020.0,111010.0,0.02115]
[1760224300286,0.1120126,111010.0,111000.0,0.39493]
[1760224300593,0.1120126,111010.0,111000.0,0.38195]
[1760224300995,0.1248726,111010.0,111000.0,0.38195]
[1760224301193,0.1248726,111010.0,111000.0,0.3608]
[1760224301493,0.1131607,111000.0,110990.0,0.40077]
[1760224301888,0.1131607,111000.0,110990.0,0.3829]
[1760224302991,0.1260207,111000.0,110990.0,0.3608]
[1760224303192,0.1131688,110990.0,110980.0,0.46019918]
[1760224303494,0.1131688,110990.0,110980.0,0.39588]
[1760224303885,0.1131688,110990.0,110980.0,0.4858869]
[1760224303886,0.02317,110990.0,110980.0,0.4858869]
[1760224304081,0.1131688,110990.0,110980.0,0.46019918]
[1760224304889,0.102855,111000.0,110980.0,0.55020608]
[1760224305096,0.113165,111000.0,110990.0,0.03497]
[1760224305390,0.4635998,111020.0,111000.0,0.03497]
[1760224305692,0.4635998,111020.0,111000.0,0.81265755]
[1760224305894,0.02317,111010.0,111000.0,0.90264825]
[1760224306190,0.113149,111020.0,111010.0,0.03497]
[1760224307295,0.126009,111020.0,111010.0,0.0221]
[1760224307498,0.1131526,111010.0,111000.0,0.39577]
[1760224308392,0.1260126,111010.0,111000.0,0.0221]
[1760224308694,0.1131607,111000.0,110990.0,0.4857688]
[1760224308996,0.0899907,111000.0,110990.0,0.4857688]
[1760224309195,0.0899907,111000.0,110990.0,0.4948795]
[1760224309400,0.0899867,111010.0,110990.0,0.4948795]
[1760224309592,0.0899867,111010.0,111000.0,0.03497]
[1760224309795,0.1131567,111010.0,111000.0,0.03497]
[1760224310193,0.1131567,111010.0,111000.0,0.0221]
[1760224310593,0.1260167,111010.0,111000.0,0.0221]
[1760224311089,0.1131567,111010.0,111000.0,0.0221]
[1760224311295,0.1131567,111010.0,111000.0,0.03497]
[1760224312399,0.1131526,111010.0,111000.0,0.03497]
[1760224312600,0.02317,111010.0,111000.0,0.03497]
[1760224312792,0.1131526,111010.0,111000.0,0.03497]
[1760224313899,0.1260126,111010.0,111000.0,0.0221]
[1760224315302,0.1131526,111010.0,111000.0,0.03497]
[1760224315905,0.1131526,111010.0,111000.0,0.39577]
[1760224317708,0.1260126,111010.0,111000.0,0.39577]
[1760224317903,0.1260126,111010.0,111000.0,0.0221]
[1760224318510,0.1131607,111000.0,110990.0,0.4048807]
[1760224319211,0.1131607,111000.0,110990.0,0.4948795]
[1760224319711,0.1260288,110990.0,110980.0,0.3829]
[1760224320304,0.1260288,110990.0,110980.0,0.3608]
[1760224320606,0.1131688,110990.0,110980.0,0.40475658]
[1760224320810,0.1131688,110990.0,110980.0,0.39577]
[1760224321402,0.1260288,110990.0,110980.0,0.39677]
[1760224321710,0.1260288,110990.0,110980.0,0.3839]
[1760224321903,0.8868288,110990.0,110980.0,0.001]
[1760224322504,0.126325,110970.0,110960.0,0.37867]
[1760224322704,0.126325,110970.0,110960.0,0.4019]
[1760224323013,0.126325,110970.0,110960.0,0.38403]
[1760224323210,0.126325,110970.0,110960.0,0.3608]
[1760224323402,0.1125932,110960.0,110950.0,0.48702202]
[1760224325112,0.1125932,110960.0,110950.0,0.39699072]
[1760224326909,0.1263332,110960.0,110950.0,0.39699072]
[1760224327113,0.1263332,110960.0,110950.0,9.072e-05]
[1760224327612,0.8871332,110960.0,110950.0,9.072e-05]
[1760224328117,0.8871332,110960.0,110950.0,0.02332072]
[1760224329212,0.8871332,110960.0,110950.0,9.072e-05]
[1760224333005,0.1037713,110950.0,110940.0,0.01786]
[1760224333210,0.4871413,110950.0,110940.0,0.01786]
[1760224333711,0.4871413,110950.0,110940.0,0.04109]
[1760224334112,0.4871413,110950.0,110940.0,0.01786]
[1760224336011,1.23221426,110950.0,110940.0,0.01786]
[1760224337020,0.8871413,110950.0,110940.0,0.01786]
[1760224338818,0.91017246,110950.0,110940.0,0.01786]
[1760224339012,0.8871413,110950.0,110940.0,0.01786]
[1760224339614,0.8871413,110950.0,110940.0,0.04109]
[1760224339818,0.8871413,110950.0,110940.0,0.01786]
[1760224340816,0.4871413,110950.0,110940.0,0.04109]
[1760224343721,0.1126013,110950.0,110940.0,0.1450994]
[1760224344519,0.1126013,110950.0,110940.0,0.05506]
[1760224344715,0.1263413,110950.0,110940.0,0.04109]
[1760224344926,0.1263413,110950.0,110940.0,0.01786]
[1760224345118,0.14938285,110950.0,110940.0,0.01786]
[1760224345424,0.51018285,110950.0,110940.0,0.01786]
[1760224346520,0.4871413,110950.0,110940.0,0.01786]
[1760224346926,0.1263574,110940.0,110930.0,0.02323]
[1760224348032,0.1263575,110930.0,110920.0,0.40719636]
[1760224348328,0.12646732,110930.0,110920.0,0.40719636]
[1760224348934,0.11272732,110930.0,110920.0,0.40719636]
[1760224349326,0.00010982,110930.0,110920.0,0.89725196]
[1760224349730,0.00010982,110930.0,110920.0,1.24232492]
[1760224351030,0.00010982,110930.0,110920.0,0.89725196]
[1760224351236,0.02267982,110930.0,110920.0,0.89725196]
[1760224351636,0.11272732,110930.0,110920.0,0.89725196]
[1760224352840,0.12634732,110930.0,110920.0,0.40719636]
[1760224354238,0.11272732,110930.0,110920.0,0.40719636]
[1760224354438,0.11272732,110930.0,110920.0,0.49725196]
[1760224355743,0.00010982,110930.0,110920.0,0.49725196]
[1760224356944,0.11291732,110930.0,110920.0,0.49725196]
[1760224358644,0.00010982,110930.0,110920.0,0.49725196]
[1760224359045,0.02286982,110930.0,110920.0,0.49725196]
[1760224359941,0.12653732,110930.0,110920.0,0.40719636]
[1760224360244,0.12653732,110930.0,110920.0,0.39322636]
[1760224360647,0.12653732,110930.0,110920.0,0.40679636]
[1760224361144,0.02286982,110930.0,110920.0,0.49685196]
[1760224361348,0.13598093,110930.0,110920.0,0.49685196]
[1760224361543,0.14868093,110930.0,110920.0,0.49685196]
[1760224362353,0.14868093,110930.0,110920.0,0.40679636]
[1760224363749,0.04593343,110930.0,110920.0,0.49685196]
[1760224363944,0.02317343,110930.0,110920.0,0.49685196]
[1760224364247,0.04523929,110930.0,110920.0,0.49685196]
[1760224364452,0.13528665,110930.0,110920.0,0.40679636]
[1760224365952,0.13528665,110930.0,110920.0,0.49685196]
[1760224366549,0.04523915,110930.0,110920.0,0.49685196]
[1760224367057,0.02216982,110930.0,110920.0,0.49685196]
[1760224367252,0.00010982,110930.0,110920.0,0.84192492]
[1760224367555,0.00010982,110930.0,110920.0,1.24192492]
[1760224369156,0.00010982,110930.0,110920.0,0.89685196]
[1760224369459,0.00010982,110930.0,110920.0,1.24192492]
[1760224370959,0.00010982,110930.0,110920.0,0.97764584]
[1760224371162,0.00010982,110930.0,110920.0,1.3227188]
[1760224373861,0.00010982,110930.0,110920.0,1.24192492]
[1760224374258,0.00010982,110930.0,110920.0,1.3227188]
[1760224375557,0.00010982,110930.0,110920.0,1.39492411]
[1760224377059,0.0900235,110960.0,110950.0,0.01279]
[1760224377358,0.1120835,110960.0,110950.0,0.81195827]
[1760224377767,0.38286,110970.0,110960.0,0.1239032]
[1760224378065,0.38286,110970.0,110960.0,0.54118147]
[1760224378460,0.4728672,110980.0,110970.0,0.03388]
[1760224378664,0.4728672,110980.0,110970.0,0.45115827]
[1760224379162,0.38286,110980.0,110970.0,0.54117337]
[1760224379467,0.02206,110980.0,110970.0,0.79113608]
[1760224380166,0.112067,110980.0,110970.0,0.36750049]
[1760224380466,0.112067,110980.0,110950.0,0.45438388]
[1760224380467,0.1247832,110960.0,110950.0,0.72830049]
[1760224380760,0.02206,110960.0,110950.0,0.81833179]
[1760224380963,0.1120832,110960.0,110950.0,0.72830049]
[1760224381466,0.1120832,110960.0,110950.0,0.39468]
[1760224381661,0.1247832,110960.0,110950.0,0.39468]
[1760224382367,0.3735,110970.0,110960.0,0.0342]
[1760224382368,0.4725991,110970.0,110960.0,0.0342]
[1760224382564,0.1256491,110970.0,110960.0,0.0342]
[1760224382864,0.4864491,110970.0,110960.0,0.02145]
[1760224384864,0.4864491,110970.0,110960.0,0.0342]
[1760224385063,0.4864491,110970.0,110960.0,0.02145]
[1760224387068,0.02178,110970.0,110960.0,0.0342]
[1760224387266,0.42178,110970.0,110960.0,0.54144507]
[1760224387469,0.5117951,110970.0,110960.0,0.0342]
[1760224388368,0.1256532,110960.0,110950.0,0.38225]
[1760224388674,0.1256532,110960.0,110950.0,0.02145]
[1760224388872,0.1256532,110960.0,110950.0,0.0342]
[1760224389371,0.1256532,110960.0,110950.0,0.02145]
[1760224390374,0.5256532,110960.0,110950.0,0.02145]
[1760224390680,0.1256613,110950.0,110940.0,0.03424]
[1760224391172,0.02178,110950.0,110940.0,0.03424]
[1760224391373,0.02178,110950.0,110940.0,0.54150127]
[1760224391674,0.02178,110950.0,110940.0,0.1242794]
[1760224393075,0.02178,110950.0,110940.0,0.4850794]
[1760224393579,0.02178,110950.0,110940.0,0.1242794]
[1760224393780,0.1118113,110950.0,110940.0,0.03424]
[1760224395081,0.02178,110950.0,110940.0,0.1242794]
[1760224395281,0.38258,110960.0,110950.0,0.0342]
[1760224395576,0.38258,110960.0,110950.0,0.02145]
[1760224395577,0.4864532,110960.0,110950.0,0.02145]
[1760224396081,0.1038878,110950.0,110940.0,0.02145]
[1760224396285,0.1256678,110950.0,110940.0,0.02145]
[1760224396881,0.5256678,110950.0,110940.0,0.02145]
[1760224400087,0.0900475,110930.0,110920.0,0.46315087]
[1760224400290,0.1256775,110930.0,110920.0,0.48460087]
[1760224400486,0.1256775,110930.0,110920.0,0.82102886]
[1760224400685,0.1256775,110930.0,110920.0,0.40380699]
[1760224401790,0.1256775,110930.0,110920.0,0.03025699]
[1760224404993,0.4864775,110930.0,110920.0,0.03025699]
[1760224405193,0.1256856,110920.0,110910.0,0.0342]
[1760224406594,0.1256856,110920.0,110910.0,0.04336122]
[1760224406794,0.02178,110920.0,110910.0,0.13342492]
[1760224407693,0.02178,110920.0,110910.0,0.37739564]
[1760224408798,0.02178,110920.0,110910.0,0.80149376]
[1760224410393,0.43144163,110940.0,110920.0,0.01275]
[1760224410599,0.4726243,110940.0,110930.0,0.36823442]
[1760224411397,0.38258,110940.0,110930.0,0.45828192]
[1760224411598,0.472615,110950.0,110940.0,0.0342]
[1760224411792,0.3608,110950.0,110940.0,0.79230814]
[1760224412289,0.37465,110970.0,110960.0,0.01319]
[1760224412490,0.38411,110970.0,110960.0,0.45929742]
[1760224412890,0.38411,110970.0,110960.0,0.36927442]
[1760224413597,0.3608,110970.0,110960.0,0.54236709]
[1760224413995,0.16103156,110980.0,110960.0,0.90316709]
[1760224414193,0.09432936,110980.0,110970.0,0.03524]
[1760224414498,0.4646523,110990.0,110980.0,0.03524]
[1760224414499,0.38411,110990.0,110980.0,0.03524]
[1760224414891,0.4741087,110990.0,110980.0,0.03524]
[1760224415591,0.4881087,110990.0,110980.0,0.02205]
[1760224415790,0.1263168,110980.0,110970.0,0.02205]
[1760224415988,0.4871168,110980.0,110970.0,0.02205]
[1760224416193,0.4871168,110980.0,110970.0,0.03524]
[1760224416796,0.4871168,110980.0,110970.0,0.02205]
[1760224418592,0.8871168,110980.0,110970.0,0.02205]
[1760224418990,0.1263249,110970.0,110960.0,0.03094912]
[1760224419200,0.4871249,110970.0,110960.0,0.02205]
[1760224419389,0.8871249,110970.0,110960.0,0.02205]
[1760224419793,0.126333,110960.0,110950.0,0.02205]
[1760224419998,0.474133,110960.0,110950.0,0.04427733]
[1760224420194,0.3608,110960.0,110950.0,0.55141262]
[1760224420595,0.474133,110960.0,110950.0,0.03524]
[1760224420991,0.113333,110960.0,110950.0,0.03524]
[1760224421996,0.126203,110960.0,110950.0,0.03524]
[1760224423204,0.126203,110960.0,110950.0,0.03624]
[1760224423497,0.126203,110960.0,110950.0,0.03724]
[1760224424309,0.113333,110960.0,110950.0,0.03724]
[1760224425004,0.113333,110960.0,110950.0,0.1272711]
[1760224425396,0.113333,110960.0,110950.0,0.04631598]
[1760224426099,0.113333,110960.0,110950.0,0.40711598]
[1760224426497,0.38362,110970.0,110960.0,0.03595]
[1760224426798,0.4736401,110970.0,110960.0,0.03595]
[1760224427002,0.1128401,110970.0,110960.0,0.03595]
[1760224427998,0.1257101,110970.0,110960.0,0.02274]
[1760224428896,0.4865101,110970.0,110960.0,0.02274]
[1760224429096,0.125713,110960.0,110950.0,0.03181598]
[1760224429296,0.486513,110960.0,110950.0,0.03181598]
[1760224430351,0.486513,110960.0,110950.0,0.001]
[1760224430352,0.886513,110960.0,110950.0,0.001]
[1760224430505,0.886513,110960.0,110950.0,0.002]
[1760224430905,0.886513,110960.0,110950.0,0.001]
[1760224431208,0.112843,110960.0,110950.0,0.04689557]
[1760224431402,0.125713,110960.0,110950.0,0.002]
[1760224431604,0.90361709,110960.0,110950.0,0.002]
[1760224431806,0.1257375,110930.0,110920.0,0.44815235]
[1760224432002,0.1257375,110930.0,110920.0,0.45699726]
[1760224432309,0.1257375,110930.0,110910.0,0.39675]
[1760224432310,0.1128756,110920.0,110910.0,0.39675]
[1760224432911,0.02282,110920.0,110910.0,0.39675]
[1760224433203,0.02182,110920.0,110910.0,0.39675]
[1760224433410,0.02282,110930.0,110920.0,0.03595]
[1760224433606,0.1128675,110930.0,110920.0,0.03595]
[1760224434013,0.38362,110940.0,110930.0,0.03595]
[1760224434212,0.4736608,110940.0,110930.0,0.03595]
[1760224434504,0.4865308,110940.0,110930.0,0.03595]
[1760224435499,0.4736608,110940.0,110930.0,0.03595]
[1760224436406,0.4865308,110940.0,110930.0,0.02274]
[1760224438111,0.1128675,110930.0,110920.0,0.02224242]
[1760224438307,0.1128675,110930.0,110920.0,0.04498242]
[1760224439412,0.1257375,110930.0,110920.0,0.02274]
[1760224439807,0.4865375,110930.0,110920.0,0.02274]
[1760224441212,0.1257456,110920.0,110910.0,0.03164836]
[1760224441411,0.1257456,110920.0,110910.0,0.04485836]
[1760224441614,0.1257456,110920.0,110910.0,0.03164836]